Cogmind - Beta 16 @@@ ROGUE MODE // 2026.01.18 @ 13:40:37 Player: ae Result: Destroyed by BT-MQP(E) with Heavy Battle Rifle Performance ------------- Evolutions (0) 0 Regions Visited (3) 600 Robots Destroyed (5) 25 Value Destroyed (34) 34 Prototype IDs (13) 260 Alien Tech Used (0) 0 Bonus (300) 300 TOTAL SCORE: 1219 Bonus ------- Registered with UFD 300 Cogmind --------- Core Integrity 0/250 Matter 285/300 Energy 83/100 System Corruption 1% Temperature Cool (14) Movement Flying (50) Location -7/Scraptown Parts ------- > --- POWER (1) -------- (None) > --- PROPULSION (2) --- Aluminum Leg Xenon Bombardment Thruster > --- UTILITY (2) ------ Small Storage Unit Seismic Detector > --- WEAPON (2) ------- (None) > --- INVENTORY (8) ---- Light Treads Light Treads Assault Rifle Assault Rifle Makeshift Hammer Companion Sword Peak State ------------ > --- POWER ------------ Ion Engine > --- PROPULSION ------- Wheel Compact Wheel > --- UTILITY ---------- Small Storage Unit Seismic Detector > --- WEAPON ----------- Companion Sword > --- INVENTORY -------- Light Treads Light Treads Aluminum Leg Xenon Bombardment Thruster Medium Laser Assault Rifle Assault Rifle Makeshift Hammer [Rating: 12] Favorites ----------- Power Ion Engine Engine Ion Engine Propulsion Wheel Leg Aluminum Leg Wheel Wheel Flight Unit Xenon Bombardment Thruster Utility Small Storage Unit Device Seismic Detector Storage Small Storage Unit Weapon Assault Rifle Ballistic Gun Assault Rifle Impact Weapon Makeshift Hammer Slashing Weapon Companion Sword Build | -11 -10 -10 -7 ------- Run | Yrd Mat Sub Scr Slots Evolved . | . . . . Power . | . . . . Propulsion . | . . . . Utility . | . . . . Weapon . | . . . . Parts Attached 12 | 7 . 1 4 Power 1 | 1 . . . Engine 1 | 1 . . . Core . | . . . . Reactor . | . . . . Propulsion 4 | 2 . . 2 Treads . | . . . . Leg 1 | . . . 1 Wheel 2 | 2 . . . Hover . | . . . . Flight 1 | . . . 1 Utility 3 | 2 . . 1 Device 2 | 1 . . 1 Storage 1 | 1 . . . Processor . | . . . . Hackware . | . . . . Protection . | . . . . Artifact . | . . . . Weapon 4 | 2 . 1 1 Energy Gun . | . . . . Energy Cannon . | . . . . Ballistic Gun 2 | 2 . . . Ballistic Cannon . | . . . . Launcher . | . . . . Special Weapon . | . . . . Impact Weapon 1 | . . 1 . Slashing Weapon 1 | . . . 1 Piercing Weapon . | . . . . Special Melee Weapon . | . . . . Unidentified Prototypes 1 | . . . 1 Parts Lost 3 | . . . 3 Power 1 | . . . 1 Propulsion 2 | . . . 2 Utility . | . . . . Weapon . | . . . . Highest Loss Streak 3 | . . . 3 To Critical Strikes . | . . . . Average Backups 7 | 4 7 7 7 Power . | . 1 1 . Propulsion 3 | 2 4 4 3 Utility . | . 1 1 . Weapon 3 | . 1 1 3 Tool/Special . | . . . . Unused Backups 5 | . . . 5 Power 1 | . . . 1 Propulsion 3 | . . . 3 Utility . | . . . . Weapon 1 | . . . 1 Tool/Special . | . . . . Average Slot Usage (%) 73 | . 100 100 71 Engine 13 | . 14 14 13 Wheel 27 | . 28 28 27 Device 14 | . 14 14 14 Storage 14 | . 14 14 14 Ballistic Gun 2 | . 28 22 . Peak Build Rating 12 | 7 7 10 12 Average Rating 6 | 5 7 8 6 On Entrance 6 | . 7 7 10 Avg Prop Armor Cover (%) . | . . . . Naked Turns . | . . . . Heaviest Build 16 | 15 15 16 16 Greatest Support 26 | 26 26 26 26 Greatest Overweight (x) . | . . . . Average Overweight (x) . | . . . . Largest Inventory Capacity 8 | 8 8 8 8 Average Capacity 7 | 7 8 8 8 Most Carried 8 | 7 7 8 8 Average Carried 7 | 4 7 7 7 Final Capacity 8 | 8 8 8 8 Final Carried 8 | 7 7 8 6 Class Distribution -------------------- 100% | Mutant Dominant Class ---------------- Mutant | -10/Materials Mutant | -10/Subcaves Mutant | -7/Scraptown Resources | -11 -10 -10 -7 ----------- Run | Yrd Mat Sub Scr Matter Collected 348 | 278 11 39 20 Remotely 173 | 123 11 39 . Salvage Created 134 | 123 11 . . Parts 15 | 10 5 . . Haulers Intercepted . | . . . . Recyclers Shooed . | . . . . Parts Field Recycled . | . . . . Retrieved Matter . | . . . . Parts Self-Destructed 14 | . . 14 . Prevented . | . . . . Parts Restored . | . . . . Kills | -11 -10 -10 -7 ------- Run | Yrd Mat Sub Scr Combat Hostiles Destroyed . | . . . . Classes Destroyed 2 | 2 . . . Tunneler 4 | 3 1 . . Recycler 1 | 1 . . . Best Kill Streak 4 | 4 1 . . Combat Bots Only . | . . . . Max Kills in Single Turn 1 | 1 1 . . Gunslinging . | . . . . Exploded . | . . . . Melee . | . . . . Uniques/NPCs Destroyed . | . . . . Combat | -11 -10 -10 -7 -------- Run | Yrd Mat Sub Scr Hostile Shots Fired 47 | . . 15 32 Missed 17 | . . 7 10 Hits 30 | . . 8 22 Projectile 30 | . . 8 22 Critical Strikes 3 | . . . 3 Damage Taken 443 | . 10 45 388 Core 254 | . 10 21 223 Absorbed by Shields . | . . . . Core Remaining (%) 100 | 100 . . . Volleys Fired 8 | 7 1 . . Largest 2 | 2 2 . . Hottest 40 | 40 40 . . Shots Fired 16 | 14 2 . . Gun 16 | 14 2 . . Cannon . | . . . . Launcher . | . . . . Special . | . . . . Kinetic 16 | 14 2 . . Thermal . | . . . . Explosive . | . . . . Electromagnetic . | . . . . Robot Hit Streak 4 | 4 3 . . Robot Miss Streak 2 | 2 . . . Penetration Max . | . . . . Secondary Targets . | . . . . Shots Hit Robots 11 | 9 2 . . Core Hits 6 | 5 1 . . Critical Kills . | . . . . Critical Parts Destroyed . | . . . . Critical Strikes . | . . . . Melee Attacks 1 | . . 1 . Impact 1 | . . 1 . Slashing . | . . . . Piercing . | . . . . Sneak Attacks . | . . . . Combat Hostiles . | . . . . Follow-up Attacks . | . . . . Damage Inflicted 150 | 119 26 . 5 Guns 145 | 119 26 . . Cannons . | . . . . Explosions . | . . . . Melee . | . . . . Ramming 5 | . . . 5 Kinetic 145 | 119 26 . . Thermal . | . . . . Explosive . | . . . . Electromagnetic . | . . . . Impact . | . . . . Slashing . | . . . . Piercing . | . . . . Highest Corruption 1 | . . . 1 Average Corruption 1 | . . . 1 Corruption Purged . | . . . . Corruption Blocked . | . . . . Overload Shots . | . . . . Overflow Damage . | . . . . Projectiles . | . . . . Explosions . | . . . . Melee . | . . . . Knockbacks . | . . . . Impact . | . . . . Kinetic . | . . . . Secondary . | . . . . Self-Inflicted Damage 2 | . . . 2 Shots . | . . . . Rammed 1 | . . . 1 Targets Rammed 1 | . . . 1 Kicked . | . . . . Crushed . | . . . . Highest Temperature 14 | . . . 14 Average Temperature 14 | . . . 14 Received Heat Transfer 103 | . 6 36 61 Siege Activations . | . . . . Martial Activations . | . . . . Shielding Activations . | . . . . Robots Disrupted . | . . . . Combat Hostiles . | . . . . Robots Corrupted . | . . . . Combat Hostiles . | . . . . Parts Fried . | . . . . Impact Corruptions . | . . . . Robots Melted . | . . . . Combat Hostiles . | . . . . Parts Melted . | . . . . Heat Transferred . | . . . . Parts Sabotaged . | . . . . Parts Stolen . | . . . . Parts Stripped . | . . . . Power Chain Reactions . | . . . . Alert | -11 -10 -10 -7 ------- Run | Yrd Mat Sub Scr Maximum Alert Level . | . . . . Low Security (%) 100 | 100 100 . . Level 1 . | . . . . Level 2 . | . . . . Level 3 . | . . . . Level 4 . | . . . . Level 5 . | . . . . High Security . | . . . . Max Security . | . . . . Peak Influence 15 | 15 5 . . Initial 3 | . 3 . . Average 2 | 3 1 . . Influence Increases 160 | 20 5 135 . Destroy 0b10 Robot/NC 25 | 20 5 . . Lose Combat Pursuer 135 | . . 135 . Influence Decreases 160 | 15 10 20 115 Entered New Map 117 | . 2 . 115 Time Decay 43 | 15 8 20 . Squads Dispatched 1 | . 1 . . Investigation . | . . . . Extermination . | . . . . Reinforcement 1 | . 1 . . Assault . | . . . . Garrison . | . . . . Intercept . | . . . . Searches Triggered . | . . . . Construction Impeded . | . . . . Haulers Reinforced . | . . . . Active Scanning Responses . | . . . . Cargo Convoy Interrupts . | . . . . Stealth | -11 -10 -10 -7 --------- Run | Yrd Mat Sub Scr Distress Signals . | . . . . Communications Jammed . | . . . . Distress Signals . | . . . . Times Spotted 20 | . 1 8 11 Peak Tracking Total 18 | . . 7 18 Tactical Retreats 2 | . . 2 . Traps | -11 -10 -10 -7 ------- Run | Yrd Mat Sub Scr Traps Triggered . | . . . . Indirectly . | . . . . Trap Hack Attempts . | . . . . Triggered . | . . . . Disarmed . | . . . . Reprogrammed . | . . . . Reused . | . . . . Traps Extracted . | . . . . Installed 2 | . . . 2 Triggered . | . . . . Machines | -11 -10 -10 -7 ---------- Run | Yrd Mat Sub Scr Machines Disabled . | . . . . Max in Single Turn . | . . . . Machines Repaired . | . . . . Machines Dismantled . | . . . . Machines Sabotaged . | . . . . Overloaded Fab Kills . | . . . . Hacking | -11 -10 -10 -7 --------- Run | Yrd Mat Sub Scr Machines Accessed 7 | . . . 7 Terminals . | . . . . Fabricators . | . . . . Repair Stations . | . . . . Recycling Units . | . . . . Scanalyzers . | . . . . Garrison Access . | . . . . Total Hacks 19 | . . . 19 Successful 19 | . . . 19 Failed . | . . . . Catastrophic . | . . . . Database Lockouts . | . . . . Manual . | . . . . Terminals . | . . . . Fabricators . | . . . . Repair Stations . | . . . . Recycling Units . | . . . . Scanalyzers . | . . . . Garrison Access . | . . . . Terminal Hacks 19 | . . . 19 Record 9 | . . . 9 Robot Analysis 8 | . . . 8 Open Door 1 | . . . 1 Proto ID Catalog 1 | . . . 1 Fabricator Hacks . | . . . . Repair Station Hacks . | . . . . Recycling Unit Hacks . | . . . . Scanalyzer . | . . . . Garrison Access Hacks . | . . . . Unauthorized Hacks . | . . . . Terminals . | . . . . Fabricators . | . . . . Repair Stations . | . . . . Recycling Units . | . . . . Scanalyzers . | . . . . Garrison Access . | . . . . Data Cores Recovered . | . . . . Used . | . . . . Hacking Detections . | . . . . Full Trace Events . | . . . . Feedback Events . | . . . . Feedback Blocked . | . . . . Robot Schematics Acquired . | . . . . Robots Built . | . . . . Authchips . | . . . . Time . | . . . . Total Robot Build Rating . | . . . . Part Schematics Acquired . | . . . . Parts Built . | . . . . Authchips . | . . . . Time . | . . . . Total Part Build Rating . | . . . . Part Studies Acquired . | . . . . Parts Repaired . | . . . . Time . | . . . . Parts Recycled . | . . . . Recycled Matter . | . . . . Retrieved Matter . | . . . . Retrieved Components . | . . . . Parts Scanalyzed . | . . . . Part Schematics Acquired . | . . . . Parts Damaged . | . . . . Bothacking | -11 -10 -10 -7 ------------ Run | Yrd Mat Sub Scr Used RIF Installer . | . . . . Robots Hacked . | . . . . Non-combat . | . . . . Combat . | . . . . Robot Hacks Applied . | . . . . Relay Couplers Released . | . . . . Fabnet Peak Effective % . | . . . . Robots Rewired . | . . . . Allies Hacked . | . . . . Hacks Repelled . | . . . . Allies | -11 -10 -10 -7 -------- Run | Yrd Mat Sub Scr Total Allies . | . . . . Largest Group . | . . . . Highest-Rated Group . | . . . . Highest-Rated Ally . | . . . . Total Orders . | . . . . Ally Attacks . | . . . . Total Damage . | . . . . Kills . | . . . . Allies Corrupted . | . . . . Allies Melted . | . . . . Intel | -11 -10 -10 -7 ------- Run | Yrd Mat Sub Scr Active Infowar (turns) 3636 | . . . 3636 Seismic 3636 | . . . 3636 Robot Analysis Total 8 | . . . 8 Derelict Logs Recovered . | . . . . Drone Launches . | . . . . Drone Recoveries . | . . . . Exploration | -11 -10 -10 -7 ------------- Run | Yrd Mat Sub Scr Turns Passed 4069 | 81 89 247 3652 Spaces Moved 1885 | 48 51 95 1691 Core 1 | 1 . . . Treads . | . . . . Legs 2 | . . . 2 Wheels 1882 | 47 51 95 1689 Hover . | . . . . Flight . | . . . . Fastest Speed 50 | 50 90 90 90 Average Speed 90 | 88 90 90 90 Slowest Speed 120 | 90 90 90 120 Overloaded Moves . | . . . . Propulsion Burnouts . | . . . . Robots Hopped . | . . . . Potential Cave-ins . | . . . . Cave-ins Triggered . | . . . . Exploration Rate (%) 30 | 3 14 11 95 Regions Visited 3 Branch Regions 2 Pre-discovered Areas . | . . . . Known Exits Taken . | . . . . Unknown Exits Taken 3 | 1 1 1 . Scrap Searched 6 | . . . 6 Spaces Dug . | . . . . Terrain Destroyed . | . . . . Melee . | . . . . Projectile . | . . . . AOE . | . . . . Terrain Rammed . | . . . . Walls Destroyed . | . . . . Machines Disabled . | . . . . Actions | -11 -10 -10 -7 --------- Run | Yrd Mat Sub Scr Total 4237 | 69 91 254 3823 Wait 2312 | . 40 156 2116 Move 1882 | 47 50 94 1691 Hop . | . . . . Pick Up 10 | 8 . 1 1 Fast Attach 8 | 6 . . 2 Attach 3 | 1 . . 2 Detach 3 | . . . 3 Swap 1 | . . 1 . Drop 5 | . . . 5 Fire 8 | 7 1 . . Melee 1 | . . 1 . Ram 1 | . . . 1 Kick . | . . . . Crush . | . . . . Escape Stasis . | . . . . Rewire 1 | . . 1 . Trap 2 | . . . 2 Miscellaneous . | . . . . Route ------- -11/Scrapyard -10/Materials (discovered 2 exits: [*Min] / [*Sub]) -10/Subcaves (discovered 2 exits: [*Rec] / *Scr) -7/Scraptown (discovered 2 exits: [*Fac x2]) History --------- Turn | Location | Event 29 | -11/Scrapyard | Discovered new exit (range 15) 82 | -11/Scrapyard | Entered Materials 83 | -10/Materials | Met a group of wandering Federalists 90 | -10/Materials | Discovered new exit (range 16) 141 | -10/Materials | Discovered new exit (range 5) 171 | -10/Materials | Entered Subcaves 171 | -10/Subcaves | Accompanied by 2 allies 172 | -10/Subcaves | Continued accompanying wandering Federalists (6) 172 | -10/Subcaves | Approached by a straggling Scientist 173 | -10/Subcaves | Shifting Twisted Machinery released Mak. Hammer 202 | -10/Subcaves | Shifting Twisted Machinery released Sub. Laser 311 | -10/Subcaves | Build established: Mutant 382 | -10/Subcaves | A swath of the cavern ceiling suddenly collapsed 395 | -10/Subcaves | Wandering Federalist uncovered a shortcut to Scraptown 398 | -10/Subcaves | Discovered new exit (range 11) 418 | -10/Subcaves | Entered Scraptown 444 | -7/Scraptown | Lost 3 allies 453 | -7/Scraptown | Heard Great Nut preacher, LISTEN AND RECITE! 649 | -7/Scraptown | Visited Cave Peace 676 | -7/Scraptown | Visited Junk Repository 692 | -7/Scraptown | Visited Cyclists 721 | -7/Scraptown | Visited CPS Storage 860 | -7/Scraptown | Visited TADAMA 882 | -7/Scraptown | Visited Fellowship of the Rings 969 | -7/Scraptown | Visited UFD Registry 981 | -7/Scraptown | Visited SPCMW 1070 | -7/Scraptown | Discovered new exit (range 11) 1194 | -7/Scraptown | Registered with UFD as "Novadriver" 1218 | -7/Scraptown | Visited Infowarlord's Domain 1238 | -7/Scraptown | Visited Curators Association 1254 | -7/Scraptown | Visited Chapter 10 2683 | -7/Scraptown | Visited Sword Containment 2692 | -7/Scraptown | Found Prototype Slashing Weapon 2692 | -7/Scraptown | Identified Companion Sword 2713 | -7/Scraptown | Visited Scrapoid Pod Storage 2773 | -7/Scraptown | Visited Analyses Database 2789 | -7/Scraptown | Visited Science Guys 2836 | -7/Scraptown | Discovered new exit (range 5) 2915 | -7/Scraptown | Visited Abandonware Association 2930 | -7/Scraptown | Learned abandonware demo "POISON.EXE" 2930 | -7/Scraptown | Learned abandonware demo "REBOOT5.EXE" 2952 | -7/Scraptown | Visited Observation Area 2994 | -7/Scraptown | Visited DA-N13 Charitable Foundation 3307 | -7/Scraptown | Found DCF Scrap (28 items) 3584 | -7/Scraptown | Warned about trapping Scraptown 4052 | -7/Scraptown | Attacked by Scraptown defenders 4067 | -7/Scraptown | Core integrity fell below 50% 4069 | -7/Scraptown | Core integrity fell below 20% 4070 | -7/Scraptown | Destroyed by BT-MQP(E) with Heavy Battle Rifle Last Messages --------------- while to reconstruct..." 03308_ Acquired 10 matter. 03312_ Searching scrap... 03312_ Found Disposable Heat Sink. 03312_ Found Lrg. Storage Unit. 03312_ Found 67 Matter. 03583_ Installed Vortex Trap. 03584_ ANNOUNCEMENT: Tracking potentially hostile trap installation. 04051_ Installed Vortex Trap. 04052_ ANNOUNCEMENT: Intruder alert! Defend Scraptown! 04063_ Machine disabled. 04064_ Slammed into SJ-VHC(p). 04064_ Penetrated by Slug. 04065_ Wheel destroyed. 04065_ Com. Wheel destroyed. 04066_ Ion Engine destroyed. 04066_ Slug penetrates V4-OAQ(j). 04069_ Critical hit (Burn: +50). Map ----- +----------------------------------------------------+ | ?????????????????????????????????????????????????? | | ?????????????????????????????????????????????????? | | ?????????????????????????????????????????????????? | | ?????????????????????????????????????????????????? | | ????????????????????????????????#####????????????? | | ????????????????????????????????#"""#????????????? | | ?###################???####?????#" "#????????????? | | ?"""##"""##""|##"""#??## ##????# < #????????????? | | #"" ##""!##"" ##!!"#### ###### ##???????????? | | #"" #???????????? | | # #???????????? | | ####################### ###########???????????? | | ??????????????????????##cE##?????????????????????? | | ###########????????????# #############??????????? | | #"""""""""#????????????# E#"""""""""""#??????????? | | #" "#??########### #""""" X """#??????????? | | #" """"" "#??#"""""""""# #""" """"#??????????? | | #" "???" "#??# " " " # c#" "/""#??????????? | | #" "???" "#??# #Ec#""" """"#??????????? | | #" "???" "#??# "# #" #c #"""" ""#??????????? | | #" "???" "#??# "#X#" # E#"" #??????????? | | #" """"" "#??# "###" # #"" "" "^#??????????? | | #" "#??# """"" # #"" "" "^#??????????? | | #"" #??# # # "#??????????? | | # #??# # #" #??????????? | | ###### ####??##### ##### @## ##########??????????? | | ###### ########### ##### ## ##??????????????????? | | """""" """"""""""" """"" Ep" "#########??????????? | | % "## """"#??????????? | | "## """"#??????????? | | "## " "#??????????? | | p jp "## ""#??????????? | | "#??????????? | | """""""""""""""""""""""" p "## X"#??????????? | | """""""""""""""""""""""" "## " "#??????????? | | #### ################"" z "## """"#??????????? | | ##????????#"" "#########??????????? | | X"#????????#"" "##"""""#???????????? | | "" "" ##????????#""E "## "#???????????? | | "" "" X"#??????###"" "## "#???????????? | | " " ######### #"" "## "#???????????? | | "" !"#???????????? | | "" ["## "#???????????? | | " " ######### #"" "## "#???????????? | | "" "" ""#??????###"" "##"""" #???????????? | | "" "" ##????????#"" "########???????????? | | X"#????????#"" "#??????????????????? | | ##????????#"" "#?????########?????? | | #### ################"" "####### #?????? | | """""""""""""""""""""""" "## ## #?????? | +----------------------------------------------------+ Best States ------------- Heat Dissipation 25 Energy Generation 10 Energy Capacity 250 Matter Stores 300 Matter Capacity 300 Sight Range 16 Terrain Scan Density 10 Evasion (%) 50 Item Schematics ----------------- None Robot Schematics ------------------ None Fabricated ------------ Nothing Repaired ---------- Nothing Studied --------- None Alien Tech Used ----------------- None Achievements -------------- None Challenges ------------ None Game ------ Seed CommDirectedBuckler Manual? 0 Play Time 00:31:42 Cumulative 52.8 hours Start 2026.01.18 @ 13:10:48 End 2026.01.18 @ 13:40:37 Sessions 1 Manual Loads 0 Difficulty Rogue Special Mode None Game No. 32 Rogue 28 Adventurer 4 Explorer 0 Win Type - Total 1 Types 1/0/0/0/0/0/0/0/0/0 Lore% 31 Gallery% 34 Achievement% 26 Wizard Run 0 Options --------- Layout 1 ASCII 0 Keyboard 1 Movement Vi Keybinds 0 Fullscreen 0 Font 20/SmallcapsGlow Map View 50x35 Zoom Use 0% Tactical HUD 1 Map Filters NONE Filters NONE Steam 1 RUN: 5e33be77-91f9-42d2-b164-4e14821f1e87